bitfinex/quotes_SOLUSD_20220211
["timestamp","ask_amount","ask_price","bid_price","bid_amount"]
[1644582233493,46.8171453,106.4,106.34,2.69015555]
[1644582233694,46.8171453,106.4,106.34,7.85259491]
[1644582233996,47.0671453,106.4,106.34,5.16243936]
[1644582234295,4.7,106.39,106.32,2.69015555]
[1644582234494,40.68454051,106.38,106.31,7.86183014]
[1644582234693,4.7,106.37,106.29,2.69015555]
[1644582234893,45.08713451,106.36,106.29,7.60054142]
[1644582235093,45.08713451,106.36,106.3,4.702]
[1644582236492,45.08713451,106.36,106.31,4.92141331]
[1644582236694,0.03805543,106.38,106.31,4.92141331]
[1644582236893,0.03805543,106.38,106.31,7.30508122]
[1644582237094,0.03805543,106.42,106.32,4.92141331]
[1644582237294,0.03805543,106.38,106.33,2.69015555]
[1644582237596,0.03805543,106.41,106.34,4.699]
[1644582237794,0.03805543,106.38,106.34,4.699]
[1644582237996,47.36243709,106.41,106.34,4.699]
[1644582238193,39.03299246,106.39,106.33,4.699]
[1644582238494,48.01975491,106.37,106.32,2.69015555]
[1644582238694,48.01975491,106.37,106.32,2.94015555]
[1644582238896,48.01975491,106.37,106.32,7.62312016]
[1644582239095,4.7,106.36,106.32,4.93296461]
[1644582239296,34.80163303,106.35,106.31,2.69015555]
[1644582239494,0.03805543,106.36,106.31,2.69015555]
[1644582239694,0.03805543,106.37,106.31,7.39215555]
[1644582239895,4.73805543,106.39,106.32,4.93296461]
[1644582240093,0.03805543,106.37,106.32,4.93296461]
[1644582240294,170.04,106.45,106.32,2.69015555]
[1644582240295,4.73805543,106.39,106.32,2.69015555]
[1644582240503,35.76723218,106.38,106.32,2.69015555]
[1644582240693,35.80528761,106.38,106.32,2.69015555]
[1644582241095,35.80528761,106.38,106.33,2.69015555]
[1644582241296,35.80528761,106.38,106.34,2.69015555]
[1644582241496,36.01723218,106.38,106.34,2.69015555]
[1644582241717,36.01723218,106.38,106.33,2.69015555]
[1644582241901,35.80528761,106.38,106.33,2.69015555]
[1644582242297,35.80528761,106.38,106.34,2.69015555]
[1644582242499,35.76723218,106.38,106.34,2.69015555]
[1644582243299,0.03805543,106.42,106.34,2.69015555]
[1644582243501,0.03805543,106.42,106.35,4.699]
[1644582243698,0.03805543,106.42,106.35,7.38915555]
[1644582243900,4.73705543,106.46,106.37,2.69015555]
[1644582244100,0.03805543,106.41,106.37,21.47312016]
[1644582244299,46.95904078,106.45,106.38,4.93296461]
[1644582244500,51.61998535,106.45,106.38,7.62312016]
[1644582244699,0.03805543,106.44,106.38,7.62312016]
[1644582245098,0.03805543,106.44,106.38,4.93296461]
[1644582247103,0.03805543,106.44,106.38,9.63096461]
[1644582247304,0.03805543,106.44,106.38,4.698]
[1644582247903,0.03805543,106.44,106.38,4.948]
[1644582248104,0.03805543,106.44,106.39,4.96028195]
[1644582248308,47.17098535,106.45,106.4,4.698]
[1644582248506,0.03805543,106.44,106.4,4.698]
[1644582248706,47.17098535,106.45,106.4,4.698]
[1644582248906,0.03805543,106.49,106.4,4.698]
[1644582249105,0.03805543,106.5,106.4,20.93166791]
[1644582249326,4.73505543,106.49,106.41,7.64733214]
[1644582249529,4.73505543,106.49,106.42,4.696]
[1644582249726,25.83106791,106.53,106.42,4.696]
[1644582249727,4.73405543,106.52,106.42,4.696]
[1644582249925,39.06660431,106.51,106.42,4.946]
[1644582250125,4.73405543,106.5,106.42,4.946]
[1644582250327,43.74948581,106.49,106.42,4.946]
[1644582250930,0.03805543,106.5,106.42,4.946]
[1644582251130,0.03805543,106.51,106.43,18.55558802]
[1644582251328,0.03805543,106.5,106.43,13.6]
[1644582251529,4.696,106.49,106.42,4.696]
[1644582251927,39.50691909,106.48,106.42,4.696]
[1644582252129,38.12706078,106.46,106.42,4.696]
[1644582252330,37.47983164,106.44,106.38,2.69015555]
[1644582252528,37.47983164,106.44,106.39,4.698]
[1644582252726,37.47983164,106.44,106.38,7.65060414]
[1644582252727,37.51788707,106.44,106.38,2.69015555]
[1644582252928,37.51788707,106.44,106.38,7.65086929]
[1644582253130,37.51788707,106.44,106.36,8.73323332]
[1644582253131,37.51788707,106.44,106.37,7.65086929]
[1644582253327,46.88478374,106.42,106.37,7.65086929]
[1644582253528,54.17078374,106.42,106.37,7.65086929]
[1644582253729,35.39185343,106.42,106.37,2.69015555]
[1644582253934,35.39185343,106.42,106.36,2.69015555]
[1644582254129,35.42990886,106.42,106.36,4.69927575]
[1644582254329,35.39185343,106.42,106.36,7.6394313]
[1644582254531,35.39185343,106.42,106.37,4.69927575]
[1644582254730,4.699,106.41,106.37,4.69927575]
[1644582254930,4.699,106.41,106.35,4.69927575]
[1644582255134,0.03805543,106.41,106.35,4.699]
[1644582255330,0.03805543,106.43,106.37,5.07382346]
[1644582255529,0.03805543,106.43,106.38,4.97091512]
[1644582255730,0.03805543,106.45,106.38,7.66107067]
[1644582255928,4.73505543,106.48,106.38,7.66107067]
[1644582256228,0.03805543,106.44,106.38,7.66107067]
[1644582256430,4.698,106.46,106.38,7.66107067]
[1644582256628,35.83457388,106.45,106.37,11.71502608]
[1644582256829,0.03805543,106.44,106.39,18.42816541]
[1644582257033,0.03805543,106.45,106.39,21.36832096]
[1644582257230,0.03805543,106.48,106.4,7.35458303]
[1644582257433,4.697,106.48,106.39,2.69015555]
[1644582257632,4.73505543,106.5,106.39,7.91278886]
[1644582257830,0.03805543,106.47,106.41,2.38366791]
[1644582258030,0.03805543,106.49,106.41,2.63366791]
[1644582258232,43.17018207,106.49,106.41,2.63366791]
[1644582258631,43.17018207,106.49,106.42,4.97148509]
[1644582259233,43.17018207,106.49,106.42,7.355153]
[1644582259631,43.17018207,106.49,106.41,0.25]
[1644582259830,4.697,106.48,106.4,7.33066791]
[1644582260036,0.03805543,106.47,106.4,7.33066791]
[1644582260231,0.03805543,106.47,106.4,4.947]
[1644582260431,0.03805543,106.47,106.41,2.38366791]
[1644582260631,44.89456455,106.47,106.41,2.63366791]
[1644582260833,44.93261998,106.47,106.4,4.697]
[1644582261233,44.93261998,106.47,106.4,7.33066791]
[1644582261434,45.18261998,106.47,106.4,7.33066791]
[1644582261633,44.93261998,106.47,106.4,4.697]
[1644582261834,45.18261998,106.47,106.4,4.697]
[1644582262231,44.89456455,106.47,106.41,3.6192775]
[1644582262431,44.89456455,106.47,106.42,4.697]
[1644582262934,44.89456455,106.47,106.39,13.6]
[1644582263134,44.89456455,106.47,106.4,4.697]
[1644582263135,49.59156455,106.47,106.4,4.697]
[1644582263337,49.59156455,106.47,106.38,18.297]
[1644582263534,49.59156455,106.47,106.38,11.20904678]
[1644582263736,0.03805543,106.46,106.38,13.59271469]
[1644582263935,0.03805543,106.46,106.39,4.74991186]
[1644582264135,0.03805543,106.46,106.4,4.698]
[1644582264336,13.6,106.51,106.4,7.08166791]
[1644582264337,0.03805543,106.5,106.4,7.08166791]
[1644582264536,4.73405543,106.5,106.41,7.13084592]
[1644582264741,4.696,106.5,106.41,2.38366791]
[1644582264939,0.03805543,106.49,106.41,2.38366791]
[1644582265143,42.29252077,106.49,106.42,20.66707404]
[1644582265440,42.25446534,106.49,106.42,4.697]
[1644582265640,42.25446534,106.49,106.42,4.947]
[1644582266040,42.25446534,106.49,106.42,7.33066791]
[1644582266241,0.03805543,106.52,106.42,7.33066791]
[1644582266741,4.696,106.51,106.42,7.33066791]
[1644582266941,0.03805543,106.5,106.42,7.33066791]
[1644582267140,38.80719727,106.5,106.42,23.28815898]
[1644582267341,0.03805543,106.49,106.42,23.28815898]
[1644582268048,0.03805543,106.49,106.42,7.33066791]
[1644582269146,0.03805543,106.49,106.42,29.52413758]
[1644582269748,0.03805543,106.49,106.42,7.33066791]
[1644582270148,0.03805543,106.49,106.42,4.947]
[1644582270551,0.03805543,106.49,106.42,4.697]
[1644582270949,0.03805543,106.49,106.4,36.10814125]
[1644582271151,39.26701283,106.48,106.4,36.10814125]
[1644582271350,4.73505543,106.49,106.4,36.10814125]
[1644582271351,0.03805543,106.47,106.4,38.49180916]
[1644582271550,0.03805543,106.47,106.4,53.90917453]
[1644582271751,0.03805543,106.48,106.41,219.1331]
[1644582272053,4.73405543,106.53,106.42,18.297]
[1644582272258,4.73305543,106.54,106.43,4.66997957]
[1644582272451,0.03805543,106.52,106.44,41.5489]
[1644582272650,0.03805543,106.53,106.44,43.93256791]
[1644582272854,0.03805543,106.51,106.44,43.93256791]
[1644582273054,4.945,106.54,106.45,2.38366791]
[1644582273251,0.03805543,106.53,106.45,2.63366791]
[1644582273451,0.28805543,106.54,106.45,23.3341]
[1644582273652,0.03805543,106.52,106.45,23.3341]
[1644582273850,0.03805543,106.53,106.45,23.3341]
[1644582274052,0.03805543,106.54,106.44,23.2539]
[1644582274249,47.99209772,106.51,106.44,23.2539]
[1644582274449,47.99209772,106.51,106.45,4.695]
[1644582274654,48.03015315,106.51,106.44,23.2539]
[1644582274851,47.99209772,106.51,106.44,23.2539]
[1644582275052,48.03015315,106.51,106.44,23.2539]
[1644582275476,4.695,106.5,106.42,22.5931]
[1644582275756,4.73305543,106.5,106.42,22.5931]
[1644582275954,45.35497485,106.49,106.42,22.5931]
[1644582276154,4.696,106.48,106.4,5.93005235]
[1644582276355,0.03805543,106.47,106.4,4.695]
[1644582276758,0.03805543,106.48,106.4,4.695]
[1644582276963,4.73505543,106.48,106.39,52.3889]
[1644582277158,0.03805543,106.47,106.4,2.38366791]
[1644582277358,39.46279105,106.47,106.41,4.697]
[1644582277761,39.46279105,106.47,106.41,7.08066791]
[1644582277960,39.46279105,106.47,106.41,2.38366791]
[1644582278165,39.46279105,106.47,106.41,2.63366791]
[1644582278562,39.46279105,106.47,106.41,2.38366791]
[1644582278764,39.46279105,106.47,106.4,4.697]
[1644582278962,4.697,106.46,106.39,52.3889]
[1644582279264,4.73505543,106.46,106.39,52.3889]
[1644582279461,38.18761974,106.45,106.39,71.27425718]
[1644582279662,4.73605543,106.48,106.39,71.27425718]
[1644582279865,0.03805543,106.47,106.39,71.27425718]
[1644582280064,0.03805543,106.47,106.4,2.38366791]
[1644582280262,4.73505543,106.48,106.4,2.38366791]
[1644582280465,0.03805543,106.47,106.41,4.697]
[1644582280664,36.96991919,106.48,106.41,4.697]
[1644582280966,41.66691919,106.48,106.41,4.697]
[1644582281765,4.73505543,106.48,106.41,4.697]
[1644582281969,4.73505543,106.48,106.41,7.33066791]
[1644582282166,18.33505543,106.52,106.41,7.33066791]
[1644582282365,0.03805543,106.5,106.41,20.93066791]
[1644582282568,4.695,106.53,106.41,20.93066791]
[1644582282569,0.03805543,106.51,106.41,20.93066791]
[1644582282766,0.03805543,106.49,106.42,17.66618851]
[1644582283004,0.03805543,106.5,106.43,13.6]
[1644582283205,0.03805543,106.52,106.44,4.81593231]
[1644582283505,34.72193816,106.51,106.44,7.44960022]
[1644582283903,0.03805543,106.51,106.45,7.07866791]
[1644582284107,0.03805543,106.53,106.45,30.55466791]
[1644582284308,0.03805543,106.54,106.46,2.38366791]
[1644582284511,0.03805543,106.52,106.46,16.23366791]
[1644582284703,0.03805543,106.53,106.47,4.694]
[1644582284903,47.67136838,106.58,106.48,17.66618851]
[1644582285105,47.63331295,106.58,106.48,17.91618851]
[1644582285305,37.80939541,106.56,106.48,17.91618851]
[1644582285506,0.03805543,106.55,106.49,4.692]
[1644582285706,0.03805543,106.56,106.49,4.692]
[1644582285906,4.692,106.56,106.49,4.692]
[1644582286108,0.03805543,106.59,106.49,4.692]
[1644582286109,13.6,106.58,106.49,4.692]
[1644582286306,0.03805543,106.57,106.49,4.692]
[1644582286507,4.692,106.56,106.49,4.692]
[1644582286730,37.84292693,106.55,106.49,4.692]
[1644582286907,37.84292693,106.55,106.47,4.692]
[1644582286908,37.88098236,106.55,106.47,4.692]
[1644582287307,37.88098236,106.55,106.46,4.694]
[1644582287508,37.88098236,106.55,106.46,4.944]
[1644582287710,37.88098236,106.55,106.47,2.38366791]
[1644582287910,37.88098236,106.55,106.48,4.694]
[1644582288108,37.84292693,106.55,106.47,2.38366791]
[1644582288310,0.03805543,106.54,106.46,0.25]
[1644582288612,4.73205543,106.54,106.45,13.6]
[1644582288809,0.03805543,106.53,106.45,13.6]
[1644582289211,42.8933962,106.53,106.45,13.6]
[1644582289409,0.03805543,106.52,106.44,52.5612]
[1644582289709,4.73305543,106.52,106.44,52.5612]
[1644582289913,18.33305543,106.52,106.44,4.694]
[1644582290110,20.96672334,106.52,106.41,4.695]
[1644582290309,43.51567849,106.51,106.41,4.695]
[1644582290511,0.03805543,106.5,106.41,4.695]
[1644582290709,0.03805543,106.5,106.42,2.38366791]
[1644582290909,0.03805543,106.5,106.43,13.6]
[1644582291109,0.03805543,106.51,106.44,0.48]
[1644582291312,0.03805543,106.54,106.45,14.08]
[1644582291509,0.03805543,106.57,106.45,119.89826791]
[1644582291711,47.4963,106.62,106.47,0.48]
[1644582291712,0.03805543,106.53,106.47,0.48]
[1644582291908,0.03805543,106.56,106.48,13.6]
[1644582292110,42.81488313,106.59,106.49,4.15660466]
[1644582292309,0.03805543,106.58,106.49,20.14027257]
[1644582292513,0.03805543,106.58,106.49,20.39027257]
[1644582292809,4.73005543,106.58,106.49,20.39027257]
[1644582293010,38.80594679,106.57,106.49,20.39027257]
[1644582293312,0.03805543,106.56,106.49,16.23366791]
[1644582293510,0.03805543,106.56,106.5,4.692]
[1644582293711,38.80594679,106.57,106.49,16.23366791]
[1644582293911,0.03805543,106.56,106.49,16.23366791]
[1644582295110,0.03805543,106.56,106.5,4.692]
[1644582295611,4.692,106.56,106.5,0.25]
[1644582295811,4.73005543,106.56,106.5,0.25]
[1644582296414,36.91722718,106.55,106.5,0.25]
[1644582296613,36.91722718,106.55,106.49,2.63366791]
[1644582296811,36.95528261,106.55,106.49,2.63366791]
[1644582297012,36.91722718,106.55,106.49,2.63366791]
[1644582297314,46.40922718,106.55,106.49,2.63366791]
[1644582297515,46.40922718,106.55,106.49,0.25]
[1644582297712,36.91722718,106.55,106.49,0.25]
[1644582297912,36.91722718,106.55,106.48,13.85]
[1644582299514,36.91722718,106.55,106.49,4.694]
[1644582299913,36.91722718,106.55,106.49,4.944]
[1644582300116,36.95528261,106.55,106.49,4.944]
[1644582300414,36.95528261,106.55,106.49,0.25]
[1644582300614,36.91722718,106.55,106.49,0.25]
[1644582300819,18.292,106.54,106.46,4.692]
[1644582301014,18.33005543,106.54,106.46,4.692]
[1644582301214,10.91129448,106.53,106.46,4.692]
[1644582301418,18.295,106.52,106.46,4.692]
[1644582301614,30.58759236,106.52,106.46,4.692]
[1644582301816,25.93064779,106.52,106.46,4.692]
[1644582302016,25.89259236,106.52,106.46,4.692]
[1644582302217,4.695,106.52,106.44,15.83246183]
[1644582302417,0.03805543,106.51,106.45,4.695]
[1644582302618,0.03805543,106.54,106.45,4.695]
[1644582303018,0.03805543,106.54,106.46,6.64965899]
[1644582303218,47.14560344,106.55,106.48,15.83246183]
[1644582303417,0.03805543,106.53,106.48,15.83246183]
[1644582303617,0.03805543,106.55,106.49,4.694]
[1644582303817,13.6,106.57,106.49,4.694]
[1644582303818,0.03805543,106.56,106.49,4.694]
[1644582304019,0.03805543,106.56,106.49,4.944]
[1644582304418,4.73005543,106.56,106.49,0.25]
[1644582304618,43.19442992,106.56,106.49,0.25]
[1644582304819,38.50242992,106.56,106.49,0.25]
[1644582305119,38.50242992,106.56,106.48,15.83246183]
[1644582305120,38.50242992,106.56,106.48,16.08246183]
[1644582305318,0.03805543,106.55,106.49,4.692]
[1644582305522,38.50242992,106.56,106.49,4.942]
[1644582305819,0.03805543,106.55,106.49,4.942]
[1644582306019,38.50242992,106.56,106.49,4.942]
[1644582306418,0.03805543,106.57,106.5,6.64965899]
[1644582306623,0.03805543,106.57,106.5,6.89965899]
[1644582306921,0.03805543,106.57,106.51,2.38366791]
[1644582307120,0.03805543,106.62,106.51,2.63366791]
[1644582307320,24.4897,106.63,106.51,51.48216791]
[1644582307522,0.03925561,106.61,106.52,15.83246183]
[1644582307719,45.25858254,106.59,106.52,15.83246183]
[1644582307921,45.25858254,106.59,106.52,16.08246183]
[1644582308122,4.73025561,106.6,106.52,16.08246183]
[1644582308321,0.03925561,106.6,106.53,4.692]
[1644582308520,0.03925561,106.62,106.53,4.942]
[1644582308720,0.03925561,106.61,106.53,4.942]
[1644582308921,4.73025561,106.62,106.53,4.942]
[1644582309122,0.03925561,106.61,106.54,6.64965899]
[1644582309323,40.51945057,106.62,106.53,4.942]
[1644582309520,0.03925561,106.61,106.53,0.25]
[1644582309720,40.51945057,106.62,106.53,0.25]
[1644582309923,40.51945057,106.62,106.54,4.691]
[1644582310121,40.51945057,106.62,106.52,4.691]
[1644582310322,0.03925561,106.61,106.52,4.691]
[1644582310523,4.73025561,106.61,106.52,4.691]
[1644582310926,18.39392352,106.61,106.49,4.691]
[1644582311327,47.30716887,106.6,106.46,21.02632071]
[1644582311525,38.37998307,106.58,106.46,21.02632071]
[1644582311727,34.51824747,106.56,106.46,21.02632071]
[1644582311929,0.03925561,106.55,106.46,21.02632071]
[1644582312126,0.03925561,106.55,106.46,23.65998862]
[1644582312329,0.03925561,106.55,106.47,72.75346548]
[1644582312526,0.03925561,106.55,106.49,0.48]
[1644582312729,0.03925561,106.57,106.5,11.28]
[1644582313030,4.73325561,106.58,106.5,13.91366791]
[1644582313227,0.03925561,106.58,106.51,8.53146802]
[1644582313429,43.67775274,106.59,106.51,8.53146802]
[1644582313626,43.71700835,106.59,106.51,8.78146802]
[1644582313827,43.71700835,106.59,106.51,6.39780011]
[1644582314026,43.71700835,106.59,106.51,6.14780011]
[1644582314429,43.71700835,106.59,106.52,4.692]
[1644582314627,4.73125561,106.62,106.53,16.33432071]
[1644582314829,4.73125561,106.62,106.52,4.692]
[1644582314830,0.03925561,106.61,106.49,59.8602]
[1644582315028,4.692,106.61,106.5,4.692]
[1644582315427,0.03925561,106.6,106.5,4.942]
[1644582315632,0.03925561,106.6,106.5,4.692]
[1644582315828,39.7503066,106.61,106.5,21.20704625]
[1644582316029,4.692,106.6,106.5,4.692]
[1644582316228,18.39492352,106.6,106.49,48.5802]
[1644582316956,35.939204,106.59,106.49,48.5802]
[1644582317153,16.01125561,106.58,106.49,48.5802]
[1644582317758,2.38366791,106.57,106.48,4.692]
[1644582318258,46.61603127,106.56,106.48,4.692]
[1644582318457,46.65528688,106.56,106.46,25.41607684]
[1644582318656,0.03925561,106.55,106.46,4.692]
[1644582318859,4.73325561,106.55,106.46,4.942]
[1644582319257,4.73325561,106.55,106.46,4.692]
[1644582319558,38.50072204,106.54,106.46,4.692]
[1644582320457,38.50072204,106.54,106.45,4.694]
[1644582320661,0.03925561,106.53,106.45,4.694]
[1644582320859,38.53997765,106.54,106.45,4.694]
[1644582321058,0.03925561,106.53,106.45,4.694]
[1644582321259,38.53997765,106.54,106.45,4.694]
[1644582321459,38.53997765,106.54,106.44,2.69015555]
[1644582321460,4.73425561,106.53,106.44,2.69015555]
[1644582321758,38.12086929,106.52,106.44,4.89341224]
[1644582322160,38.12086929,106.52,106.43,27.6045]
[1644582322359,4.695,106.51,106.43,27.6045]
[1644582322960,40.1449566,106.5,106.43,27.6045]
[1644582323460,0.03925561,106.53,106.44,0.42954603]
[1644582323659,11.31925561,106.54,106.45,4.695]
[1644582324160,11.31925561,106.54,106.45,7.07866791]
[1644582324358,39.24852129,106.53,106.45,7.07866791]
[1644582324558,39.24852129,106.53,106.45,7.32866791]
[1644582324960,39.24852129,106.53,106.46,18.57169724]
[1644582325360,39.24852129,106.53,106.46,18.82169724]
[1644582325660,39.24852129,106.53,106.46,0.25]
[1644582325860,39.24852129,106.53,106.45,2.38366791]
[1644582326060,39.24852129,106.53,106.43,25.29316791]
[1644582326261,4.695,106.52,106.44,4.695]
[1644582326462,4.695,106.52,106.43,22.9095]
[1644582326663,35.90749911,106.51,106.43,23.1595]
[1644582326863,35.90749911,106.51,106.44,0.55196034]
[1644582327064,35.90749911,106.51,106.44,7.63062825]
[1644582327265,35.90749911,106.51,106.44,7.88062825]
[1644582327465,35.90749911,106.51,106.44,4.945]
[1644582327863,35.90749911,106.51,106.44,7.32866791]
[1644582328063,4.695,106.53,106.44,7.32866791]
[1644582328064,0.03925561,106.54,106.44,7.32866791]
[1644582328263,0.03925561,106.54,106.44,18.60866791]
[1644582328465,0.03925561,106.54,106.45,4.88601059]
[1644582328867,4.73425561,106.59,106.45,55.4754785]
[1644582329167,42.51122615,106.58,106.46,19.78879916]
[1644582329365,42.51122615,106.58,106.48,2.69332166]
[1644582329566,42.51122615,106.58,106.48,2.94332166]
[1644582329768,42.51122615,106.58,106.47,24.2814]
[1644582329973,4.692,106.57,106.47,24.5314]
[1644582330166,0.03925561,106.56,106.47,24.5314]
[1644582330567,0.03925561,106.56,106.47,24.2814]
[1644582330768,38.30718056,106.56,106.47,24.2814]
[1644582330975,38.55718056,106.56,106.47,24.2814]
[1644582331568,49.83718056,106.56,106.47,24.2814]
[1644582332372,4.694,106.55,106.47,24.2814]
[1644582332568,4.73325561,106.55,106.47,24.2814]
[1644582332771,16.01325561,106.55,106.44,4.694]
[1644582332969,16.01325561,106.55,106.42,21.81560172]
[1644582332970,47.14569523,106.54,106.42,21.81560172]
[1644582333168,4.695,106.53,106.42,19.12544617]
[1644582333371,45.01977229,106.52,106.42,19.12544617]
[1644582333569,45.01977229,106.52,106.43,4.696]
[1644582333868,45.01977229,106.52,106.44,4.6843737]
[1644582334069,45.01977229,106.52,106.44,4.9343737]
[1644582334871,45.01977229,106.52,106.44,1.57769905]
[1644582335071,45.01977229,106.52,106.44,1.32769905]
[1644582335270,4.695,106.51,106.43,25.37809905]
[1644582335469,45.01977229,106.52,106.44,4.696]
[1644582335671,45.01977229,106.52,106.44,6.02369905]
[1644582335875,45.01977229,106.52,106.44,4.696]
[1644582336571,4.695,106.51,106.44,4.696]
[1644582336870,47.70358066,106.5,106.42,1.32769905]
[1644582337071,15.976,106.49,106.41,1.32769905]
[1644582337271,15.976,106.49,106.4,1.32769905]
[1644582337478,18.35966791,106.49,106.4,1.32769905]
[1644582337775,15.976,106.49,106.41,1.32769905]
[1644582337974,16.226,106.49,106.41,1.32769905]
[1644582338171,38.83690951,106.48,106.41,1.32769905]
[1644582338372,38.83690951,106.48,106.42,1.32769905]
[1644582338574,38.83690951,106.48,106.41,1.32769905]
[1644582340273,38.83690951,106.48,106.4,24.68199905]
[1644582340476,4.697,106.47,106.4,24.68199905]
[1644582340673,41.93224693,106.46,106.4,24.68199905]
[1644582340874,41.93224693,106.46,106.4,24.93199905]
[1644582341280,41.93224693,106.46,106.4,24.68199905]
[1644582341475,41.93224693,106.46,106.39,1.32769905]
[1644582341677,4.698,106.45,106.39,1.32769905]
[1644582341976,42.97556938,106.44,106.38,1.32769905]
[1644582342476,42.97556938,106.44,106.39,1.32769905]
[1644582342679,42.97556938,106.44,106.38,1.32769905]
[1644582343476,52.83056938,106.44,106.38,1.32769905]
[1644582343676,52.83056938,106.44,106.37,6.02569905]
[1644582344677,42.97556938,106.44,106.37,6.02569905]
[1644582345578,4.699,106.43,106.37,6.02569905]
[1644582345778,44.69514181,106.42,106.37,1.32769905]
[1644582349583,53.9049,106.46,106.37,1.57769905]
[1644582349783,49.2059,106.46,106.38,6.02569905]
[1644582350087,15.978,106.49,106.38,6.27569905]
[1644582350513,15.978,106.49,106.39,1.32769905]
[1644582350681,45.61421764,106.48,106.4,6.02469905]
[1644582350882,45.61421764,106.48,106.4,1.32769905]
[1644582351082,45.61421764,106.48,106.4,1.57769905]
[1644582353087,45.61421764,106.48,106.4,4.95902023]
[1644582353586,45.61421764,106.48,106.4,1.57769905]
[1644582354686,45.61421764,106.48,106.4,22.79113402]
[1644582354887,45.61421764,106.48,106.4,1.57769905]
[1644582355788,45.61421764,106.48,106.41,16.91348884]
[1644582355988,45.61421764,106.48,106.42,4.697]
[1644582356188,45.61421764,106.48,106.41,17.16348884]
[1644582356390,45.61421764,106.48,106.41,18.49118789]
[1644582356588,4.697,106.51,106.41,18.49118789]
[1644582356788,4.697,106.51,106.41,20.8748558]
[1644582356988,50.9919,106.52,106.42,1.32769905]
[1644582357189,50.9919,106.52,106.42,6.02369905]
[1644582357389,50.9919,106.52,106.42,6.27369905]
[1644582357588,46.8637448,106.51,106.42,6.27369905]
[1644582357788,46.8637448,106.51,106.42,1.32769905]
[1644582358189,46.8637448,106.51,106.41,25.78279905]
[1644582358391,4.696,106.5,106.41,25.78279905]
[1644582358794,48.08646826,106.49,106.41,25.78279905]
[1644582359994,48.08646826,106.49,106.41,1.32769905]
[1644582360195,4.697,106.48,106.4,1.32769905]
[1644582360795,44.17483877,106.47,106.4,1.32769905]
[1644582361294,44.17483877,106.47,106.41,1.32769905]
[1644582362095,44.42483877,106.47,106.41,1.32769905]
[1644582362496,44.42483877,106.47,106.4,6.02469905]
[1644582363198,44.42483877,106.47,106.4,12.49915775]
[1644582363397,44.17483877,106.47,106.4,12.74915775]
[1644582363598,44.17483877,106.47,106.41,1.32769905]
[1644582363800,44.17483877,106.47,106.42,6.02469905]
[1644582364002,44.17483877,106.47,106.41,1.32769905]
[1644582366121,4.697,106.46,106.41,1.32769905]
[1644582366320,4.697,106.46,106.4,1.32769905]
[1644582367221,35.41876213,106.45,106.4,1.32769905]
[1644582367620,35.66876213,106.45,106.4,1.32769905]
[1644582368022,35.66876213,106.45,106.39,1.32769905]
[1644582368223,4.698,106.44,106.38,1.32769905]
[1644582368424,48.14286044,106.43,106.38,1.32769905]
[1644582368621,4.699,106.42,106.38,1.32769905]
[1644582368921,4.699,106.42,106.37,6.02469905]
[1644582369621,38.78498599,106.41,106.37,6.02469905]
[1644582369821,38.78498599,106.41,106.37,1.32769905]
[1644582370721,15.979,106.46,106.37,1.32769905]
[1644582370925,15.479,106.46,106.37,1.32769905]
[1644582371124,11.28,106.46,106.39,1.32769905]
[1644582371822,38.21148289,106.45,106.39,1.32769905]
[1644582372023,42.90948289,106.45,106.39,1.32769905]
[1644582372725,43.15948289,106.45,106.39,1.32769905]
[1644582372924,43.15948289,106.45,106.38,1.32769905]
[1644582373124,43.15948289,106.45,106.37,1.32769905]
[1644582374127,46.68721186,106.43,106.37,1.32769905]
[1644582374333,41.14396939,106.41,106.36,1.32769905]
[1644582375931,50.62696939,106.41,106.35,1.32769905]
[1644582376134,43.33736499,106.39,106.35,1.32769905]
[1644582376732,43.33736499,106.39,106.34,1.32769905]
[1644582376934,4.7,106.38,106.33,1.32769905]
[1644582377335,43.33736499,106.39,106.33,1.32769905]
[1644582378136,43.58736499,106.39,106.32,1.35169905]
[1644582378336,4.7,106.38,106.32,1.35169905]
[1644582378536,4.7,106.38,106.33,1.32769905]
[1644582379341,35.80589606,106.37,106.33,1.32769905]
[1644582379538,35.80589606,106.37,106.32,1.35169905]
[1644582379740,35.80589606,106.37,106.32,1.32769905]
[1644582380339,35.80589606,106.37,106.31,0.024]
[1644582380340,36.0,106.36,106.31,0.024]